Workbook

Sheet Tickers
A1: Tickers | B1: MSN | C1: Start
A2: AXP | C2: 2012-01-01
A3: AAPL | C3: End
A4: F | C4: 2019-04-17
A5: IBM
A6: ORCL
A7: MSFT
A8: GE | E8: This model gets data from alphaadvantage.co
A9: COST | E9: and is limited to makng 5 requests a minute
A10: XOM | E10: and 500 requests per day.
A11: LUV
E12: To sign up for your own key, go to
E14: https://www.alphavantage.co/
E16: API key for requests
E17: G0O6KVPUQ0M3960Y

Sheet Consolidate
A1: AXP | B1: AAPL | C1: F | D1: IBM | E1: ORCL | F1: MSFT | G1: GE | H1: COST | I1: XOM | J1: LUV
A2: 0.01447934888 | B2: 0.09702570026 | C2: 0.001140250855 | D2: 0.02150148411 | E2: 0.03030875235 | F2: 0.05275372668 | G2: -0.03749807307 | H2: 0.1069763189 | I2: 0.02239655827 | J2: -0.07092206198
A3: 0.04907482685 | B3: 0.04477161648 | C3: -0.003409090909 | D3: 0.0397127674 | E3: 0.03782625041 | F3: 0.07738143323 | G3: 0.06296341813 | H3: 0.02192795581 | I3: 0.09041940375 | J3: -0.01268413017
A4: 0.08192090395 | B4: 0.05515346298 | C4: 0.1701349644 | D4: 0.1825463725 | E4: 0.1168817826 | F4: 0.0281581794 | G4: 0.3421302214 | H4: 0.05360557719 | I4: 0.07464432665 | J4: 0.2211708397
A5: -0.1509747443 | B5: -0.1166983376 | C5: -0.1870344947 | D5: -0.08529809758 | E5: -0.07403493388 | F5: -0.0840476018 | G5: 0.01065484955 | H5: -0.1192060216 | I5: -0.1422639374 | J5: -0.1462944643
A6: 0.09286466115 | B6: -0.1811875795 | C6: -0.01465654059 | D6: 0.09028270323 | E6: -0.001639357801 | F6: 0.04274837708 | G6: -0.2574246191 | H6: 0.0140065443 | I6: 0.00785870482 | J6: 0.1122191397
A7: -0.03181631256 | B7: -0.03047731891 | C7: 0.05083892054 | D7: -0.2366245286 | E7: -0.04893413136 | F7: -0.06610092059 | G7: -0.1054049814 | H7: -0.0266095181 | I7: -0.06280940706 | J7: -0.2137710168
A8: 0.004811633426 | B8: -0.008303072323 | C8: -0.02425678775 | D8: 0.03229071648 | E8: 0.06134136963 | F8: 0.018160626 | G8: -0.1192506197 | H8: 0.007506611561 | I8: 0.06049669279 | J8: 0.01876019576
A9: 0.0649113215 | B9: 0.2004349598 | C9: -0.05577956296 | D9: 0.0216560109 | E9: 0.01887741993 | F9: 0.06304877001 | G9: -0.05062656255 | H9: 0.06856408629 | I9: -0.006284212499 | J9: 0.05675357875
A10: 0.01911770037 | B10: 0.0279828556 | C10: -0.08015480787 | D10: 0.03743691376 | E10: 0.0864032629 | F10: 0.07575256572 | G10: 0.001468247222 | H10: 0.04655957409 | I10: -0.01474669437 | J10: 0.1430820104
A11: -0.003052139337 | B11: -0.009418007 | C11: -0.04156628149 | D11: -0.01139344701 | E11: -0.05693474804 | F11: -0.002326670239 | G11: -0.02466120985 | H11: 0.05417697405 | I11: 0.01833989585 | J11: -0.0007844380175
A12: -0.004556321395 | B12: 0.1351402325 | C12: 0.02758781764 | D12: -0.01444709642 | E12: 0.02299034761 | F12: 0.06145541188 | G12: 0.0007165322854 | H12: 0.008409903882 | I12: 0.05542842512 | J12: -0.03312488628
A13: 0.06257378727 | B13: -0.01501952702 | C13: 0.02832110056 | D13: -0.05520428945 | E13: 0.002371412764 | F13: 0.02465242686 | G13: 0.0437633833 | H13: 0.04633002332 | I13: 0.04208558772 | J13: -0.0776885111
A14: -0.04338037175 | B14: -0.0580508291 | C14: 0.04429306661 | D14: -0.01540157046 | E14: -0.09709907304 | F14: -0.02666105579 | G14: -0.04464500602 | H14: -0.01293853218 | I14: -0.01491877997 | J14: -0.007557787888
A15: -0.01901378787 | B15: 0.06813254519 | C15: -0.03281615385 | D15: -0.03840139268 | E15: -0.01783463936 | F15: -0.008486833686 | G15: -0.1201694018 | H15: -0.01781475031 | I15: -0.1236020373 | J15: -0.04868286093
A16: 0.00438001437 | B16: -0.0106362153 | C16: -0.09957538268 | D16: 0.06700562144 | E16: 0.09538638235 | F16: 0.1107088553 | G16: -0.07335528535 | H16: 0.04701282752 | I16: 0.04375930744 | J16: -0.07104777575
A17: 0.01637464467 | B17: -0.01524604361 | C17: -0.002396911035 | D17: -0.003571870234 | E17: -0.03628196052 | F17: 0.01627673237 | G17: -0.03936029217 | H17: 0.009163284455 | I17: 0.004201919686 | J17: 0.08099421865
A18: 0.02292740458 | B18: 0.02029045852 | C18: 0.02037531128 | D18: 0.009389736477 | E18: -0.036149938 | F18: 0.01702293139 | G18: -0.09275766612 | H18: 0.1483071644 | I18: 0.008557349669 | J18: 0.1264377791
A19: 0.05999078845 | B19: 0.09680778965 | C19: 0.0377671946 | D19: 0.0618971138 | E19: 0.05688957156 | F19: 0.1166597739 | G19: -0.1662530354 | H19: -0.01953859476 | I19: 0.01671242394 | J19: -0.03787016617
A20: 0.0506378901 | B20: -0.0602443534 | C20: 0.08522721582 | D20: 0.01433267676 | E20: -0.03933987329 | F20: -0.003743857519 | G20: -0.005190464793 | H20: 0.04816923706 | I20: 0.07401983032 | J20: 0.0736480864
A21: 0.01020784118 | B21: 0.1071424378 | C21: -0.01693596825 | D21: -0.000900769124 | E21: 0.008009690737 | F21: 0.03395118266 | G21: -0.04138994761 | H21: -0.00807176099 | I21: -0.03705292566 | J21: -0.05851194604
A22: 0.01556600082 | B22: 0.03270387142 | C22: 0.01552906826 | D22: -0.05954626869 | E22: -0.0004365517355 | F22: 0.05469230896 | G22: -0.0518345131 | H22: -0.008879005623 | I22: -0.00854772424 | J22: -0.1066949447
A23: 0.09487923378 | B23: -0.05721413274 | C23: 0.006299054136 | D23: 0.007862385964 | E23: 0.1046499461 | F23: -0.01303003338 | G23: -0.005333728721 | H23: -0.1136175665 | I23: 0.00285782837 | J23: 0.03623489929
A24: -0.02914745166 | B24: 0.06776943644 | C24: -0.03051469154 | D24: -0.03845452752 | E24: 0.00956243369 | F24: 0.02589010996 | G24: -0.05553389827 | H24: 0.06069037011 | I24: -0.004816601689 | J24: 0.0688356929
A25: 0.005891289625 | B25: -6.963923288e-05 | C25: -0.001334697258 | D25: -0.07953397898 | E25: 0.01219880708 | F25: 0.03947849608 | G25: -0.02718335788 | H25: 0.05862005093 | I25: -0.004390002311 | J25: 0.04575983537
A26: -0.01186626583 | B26: 0.04868990274 | C26: -0.07102712389 | D26: -0.03158728869 | E26: 0.04742821248 | F26: 0.02938403698 | G26: -0.0003349393245 | H26: -0.05356146874 | I26: 0.008485570135 | J26: -0.0682588001
A27: 0.04818115464 | B27: 0.1337431084 | C27: 0.01375305063 | D27: 0.03855724839 | E27: 0.06183154994 | F27: -0.004386092452 | G27: 0.01173005239 | H27: 0.08358314792 | I27: -0.02171295741 | J27: 0.1049497326
A28: 0.0353741344 | B28: 0.04774583017 | C28: 0.03537570058 | D28: 0.05138863787 | E28: 0.0472298329 | F28: 0.04039195254 | G28: -0.06012858698 | H28: 0.02398313813 | I28: -0.0705739309 | J28: 0.04955856772
A29: 0.02831631807 | B29: 0.04795582306 | C29: 0.01422047517 | D29: 0.02324004438 | E29: -0.04329424807 | F29: 0.03119746261 | G29: 0.03505600556 | H29: 0.06661806575 | I29: 0.03390662406 | J29: 0.07154098418
A30: 0.08461353216 | B30: -0.02154741173 | C30: 0.01873681111 | D30: 0.06502471371 | E30: 0.0460719366 | F30: 0.01233818415 | G30: 0.05704449984 | H30: 0.0182711008 | I30: 0.05697912945 | J30: 0.1637965436
A31: 0.0423214277 | B31: 0.004334239293 | C31: -0.0150328693 | D31: -0.03248339219 | E31: -0.01810418219 | F31: 0.04027772961 | G31: -0.01755369376 | H31: -0.03042377501 | I31: -0.0453720233 | J31: 0.02982597563
A32: -0.02348342202 | B32: 0.06550496456 | C32: -0.04206256598 | D32: -0.0001891295852 | E32: -0.04706613089 | F32: 0.002435320379 | G32: -0.04452552121 | H32: -0.059103351 | I32: 0.001607080264 | J32: 0.05450272514
A33: 0.01737530828 | B33: 0.02361804502 | C33: -0.004737501843 | D33: -0.002286646929 | E33: 0.004387327422 | F33: 0.02011523752 | G33: 0.003209404637 | H33: -0.02808595208 | I33: -0.01184530702 | J33: -0.0007855328716
A34: 0.06089545367 | B34: 0.09006197578 | C34: 0.01806307532 | D34: 0.05824236878 | E34: 0.006122992734 | F34: 0.107680698 | G34: -0.01080124707 | H34: 0.06482440345 | I34: -0.0510992036 | J34: -0.05610721023
A35: -0.07154022343 | B35: -0.04265924493 | C35: -0.06819910642 | D35: -0.01274872749 | E35: 0.01840705286 | F35: -0.03452846233 | G35: 0.04916916168 | H35: 0.05558932559 | I35: 0.05302140547 | J35: -0.07476674028
A36: 0.005043266934 | B36: 0.07179933712 | C36: -0.005166789893 | D36: 0.06345958357 | E36: 0.008530793216 | F36: 0.07033773736 | G36: -0.01691335813 | H36: 0.004320480279 | I36: 0.01551782329 | J36: -0.0477484257
A37: 0.0707962627 | B37: -0.1399211671 | C37: 0.01547525461 | D37: -0.0363815685 | E37: -0.02205072516 | F37: -0.09704800892 | G37: -0.03271302435 | H37: -0.05718290665 | I37: 0.05754372405 | J37: -0.004240862608
A38: 0.1047144247 | B38: 0.1272106398 | C38: 0.07914402821 | D38: 0.1558424102 | E38: 0.1122897305 | F38: 0.08549530401 | G38: 0.09093979795 | H38: 0.05032331906 | I38: 0.04291933784 | J38: 0.0698226278
A39: 0.03887873224 | B39: -0.001330384658 | C39: 0.04773794068 | D39: 0.06075288277 | E39: 0.01294254427 | F39: -0.0699121594 | G39: 0.009255340825 | H39: -0.004530303993 | I39: 0.03892858078 | J39: 0.1150996479
A40: -0.2273064933 | B40: -0.07524243522 | C40: -0.1239873318 | D40: -0.09322760146 | E40: -0.001852125169 | F40: -0.007030063918 | G40: -0.06581302643 | H40: -0.06427233042 | I40: -0.001282161117 | J40: -0.1263358879
A41: -0.02917379103 | B41: -0.1102279745 | C41: -0.01674853117 | D41: -0.01291032474 | E41: -0.0626103752 | F41: 0.0207903122 | G41: 0.04824852557 | H41: 0.0004952334615 | I41: -0.0454329352 | J41: -0.05990099456
A42: -0.02211364349 | B42: -0.005785192364 | C42: -0.03241137644 | D42: 0.004646992153 | E42: 0.003345127926 | F42: 0.03950254984 | G42: 0.03527191833 | H42: 0.02348119206 | I42: -0.004260599051 | J42: -0.008857459195
A43: -0.00802216848 | B43: 0.08340973972 | C43: 0.1023102613 | D43: -0.0337308426 | E43: 0.07953727401 | F43: 0.1893354356 | G43: 0.1467083326 | H43: 0.09372643373 | I43: 0.1128439691 | J43: 0.2168749643
A44: -0.03375908491 | B44: -0.02181638138 | C44: -0.02162458147 | D44: -0.01974409437 | E44: -0.0261510287 | F44: 0.01700334109 | G44: 0.0253339561 | H44: 0.03227440698 | I44: -0.01182784438 | J44: 0.03651449712
A45: 0.008676468328 | B45: -0.06620532475 | C45: -0.06473739002 | D45: -0.07945027988 | E45: -0.07135625513 | F45: -0.061981643 | G45: -0.04904037914 | H45: -0.03350035492 | I45: -0.04117230169 | J45: 0.01570279367
A46: -0.02135779224 | B46: -0.03288864058 | C46: -0.002244932149 | D46: -0.004118694921 | E46: -0.005231270255 | F46: 0.05775667375 | G46: -0.01769228084 | H46: 0.07581771564 | I46: -0.04795677323 | J46: 0.09398669132
A47: -0.02145090657 | B47: -0.03726571077 | C47: -0.01055091875 | D47: -0.0412026947 | E47: -0.07335020221 | F47: -0.05783215842 | G47: -0.01748158818 | H47: -0.05280887767 | I47: -0.02347370201 | J47: -0.1051133023
A48: 0.02931005276 | B48: 0.04531226698 | C48: -0.03986853728 | D48: -0.002002980227 | E48: -0.002979483084 | F48: -0.03031762175 | G48: 0.007019270617 | H48: -0.003215312195 | I48: -0.01663455858 | J48: -0.08653922383
A49: -0.008577502693 | B49: 0.005786137064 | C49: -0.0119046683 | D49: 0.0672272766 | E49: 0.01444869746 | F49: 0.1964066988 | G49: 0.0914950761 | H49: -0.05312951585 | I49: 0.0278828126 | J49: -0.08442426612
A50: -0.03934284309 | B50: -0.03137149461 | C50: -0.01224049148 | D50: -0.008892022245 | E50: -0.0152890203 | F50: -0.07286191353 | G50: -0.04540220579 | H50: 0.03085815859 | I50: -0.03998198749 | J50: 0.02591444007
A51: 0.01115436393 | B51: 0.1007458811 | C51: 0.1108110673 | D51: 0.06370536222 | E51: 0.04607131829 | F51: 0.09311899948 | G51: 0.09790713982 | H51: 0.06478983333 | I51: 0.02044936625 | J51: -0.04294079375
A52: -0.1302414327 | B52: 0.06142452688 | C52: -0.04112342819 | D52: -0.04444039812 | E52: -0.06592531674 | F52: -0.1302477339 | G52: -0.05460911786 | H52: 0.008747435583 | I52: -0.0544074631 | J52: 0.06758116612
A53: 0.006707769562 | B53: -0.07189080877 | C53: -0.01462412573 | D53: -0.0106676158 | E53: 0.0603628698 | F53: -0.028446672 | G53: -0.0373301693 | H53: -0.002603524589 | I53: 0.02109514157 | J53: 0.0134467577
A54: 0.02746048394 | B54: 0.1059648807 | C54: 0.1163954716 | D54: -0.006844003327 | E54: 0.08604370265 | F54: 0.02479539956 | G54: 0.02634820032 | H54: 0.06837019733 | I54: -0.05711104118 | J54: 0.2128772612
A55: 0.03064345349 | B55: 0.07195993817 | C55: -0.03876972602 | D55: -0.1339619742 | E55: 0.02324692981 | F55: 0.01272655493 | G55: 0.007416598124 | H55: 0.06423564789 | I55: 0.02828268386 | J55: 0.02102309306
A56: -0.02244569203 | B56: -0.01707322992 | C56: -0.1504837775 | D56: -0.01284488995 | E56: -0.07825668192 | F56: 0.02047069911 | G56: -0.005582229287 | H56: 0.0350179596 | I56: -0.05439345927 | J56: 0.05498451529
A57: 0.01761369753 | B57: 0.07750981734 | C57: 0.02291109219 | D57: 0.009221291068 | E57: 0.02822480812 | F57: 0.05909626902 | G57: 0.03300443464 | H57: 0.03011786505 | I57: 0.01228123672 | J57: 0.1341031046
A58: -0.06986969127 | B58: 0.02873096055 | C58: -0.005691394883 | D58: 0.05737337546 | E58: -0.0005295003539 | F58: 0.03501085307 | G58: -0.04300137049 | H58: 0.02373905925 | I58: -0.01728236595 | J58: 0.05286521388
A59: 0.03683149347 | B59: 0.02766272509 | C59: 0.04865811708 | D59: -0.01676077793 | E59: -0.03545818983 | F59: 0.01856511558 | G59: -0.01101929619 | H59: -0.007412297578 | I59: 0.001492265739 | J59: 0.01778372807
A60: 0.04655056395 | B60: 0.07872070906 | C60: 0.01796030337 | D60: -0.0561854436 | E60: 0.02788659644 | F60: 0.02038449021 | G60: -0.003722441778 | H60: 0.00603241786 | I60: -0.01171420698 | J60: 0.09433318063
A61: -0.02640755972 | B61: 0.09939547368 | C61: 0.04326599327 | D61: 0.02067624177 | E61: 0.002265912949 | F61: -0.01439385424 | G61: 0.03862480365 | H61: 0.03581576162 | I61: 0.04842307325 | J61: 0.02371903496
A62: -0.01369403379 | B62: 0.01995298168 | C62: 0.01365187713 | D62: 0.0395312985 | E62: 0.04602390112 | F62: 0.06995784576 | G62: 0.01648973075 | H62: -0.04383524588 | I62: 0.01464627707 | J62: 0.0539812073
A63: 0.07362864391 | B63: 0.05747555859 | C63: 0.02873795271 | D63: 0.05375372669 | E63: 0.05989001647 | F63: 0.01999652911 | G63: 0.02240771152 | H63: 0.04232216082 | I63: 0.05192522788 | J63: 0.0711217446
A64: -0.06052260225 | B64: -0.107697774 | C64: -0.02251394251 | D64: -0.05805871479 | E64: -0.03246830596 | F64: 0.01149174816 | G64: -0.1034611933 | H64: -0.05595642291 | I64: -0.08932842445 | J64: 0.1119960898
A65: 0.05745835673 | B65: 0.008902348216 | C65: -0.09660967027 | D65: 0.04391178698 | E65: 0.08415841584 | F65: -0.01888232325 | G65: 0.05985439202 | H65: -0.05110434743 | I65: 0.08258563675 | J65: 0.01563143436
A66: 0.04890051439 | B66: 0.07006695824 | C66: -0.001748684618 | D66: 0.007938006531 | E66: 0.05343283969 | F66: 0.08517514831 | G66: 0.01989321229 | H66: 0.065641544 | I66: 0.05021538079 | J66: 0.07955811872
A67: 0.08649622413 | B67: 0.0963855813 | C67: 0.02007150919 | D67: -0.03223873246 | E67: 0.01359896514 | F67: 0.0638508661 | G67: 0.09418195494 | H67: 0.02457243019 | I67: 0.04160906615 | J67: 0.182689676
A68: 0.05020197938 | B68: -0.02148217472 | C68: 0.04200180936 | D68: 0.01596481247 | E68: 0.041117336 | F68: -0.003589946783 | G68: 0.04043203259 | H68: 0.02949869076 | I68: -0.01284940448 | J68: 0.1366144375
A69: -0.02521389021 | B69: 0.08377316772 | C69: -0.04087653425 | D69: -0.06076507268 | E69: -0.01514549641 | F69: 0.05647917261 | G69: -0.05047410129 | H69: -0.04479213511 | I69: -0.06383760089 | J69: -0.07107930738
A70: -0.01020026694 | B70: 0.1412246069 | C70: 0.09761207986 | D70: 0.02056396548 | E70: 0.05744818699 | F70: -0.07830289403 | G70: 0.05088707391 | H70: 0.06195211901 | I70: 0.03763190219 | J70: 0.07292576063
A71: -0.01254816233 | B71: -0.1183036604 | C71: -0.01339415373 | D71: -0.08129027948 | E71: -0.09088143536 | F71: -0.01017307395 | G71: 0.00255245674 | H71: 0.008565350764 | I71: -0.001326549891 | J71: -0.08773353182
A72: 0.1067104358 | B72: 0.02248990576 | C72: 0.1522357504 | D72: 0.03182019086 | E72: 0.03050535436 | F72: 0.0616153002 | G72: 0.04620450937 | H72: 0.01385438856 | I72: 0.02366664456 | J72: 0.03430489476
A73: 0.01714281077 | B73: 0.0002711429473 | C73: 0.04258637852 | D73: -0.05044578703 | E73: 0.01392138828 | F73: 0.1571382351 | G73: -0.03589740816 | H73: 0.02186431762 | I73: -0.01242975775 | J73: 0.01632135704
A74: 0.08543822062 | B74: 0.002856020659 | C74: 0.04282641497 | D74: 0.0620925116 | E74: -0.05578472816 | F74: 0.02895523133 | G74: -0.004308302098 | H74: 0.04758524499 | I74: 0.006254435831 | J74: 0.1530959319
A75: 0.05679376464 | B75: -0.02545010522 | C75: -0.02625902654 | D75: -0.006848821456 | E75: -0.03576431327 | F75: 0.02105835663 | G75: 0.05070532516 | H75: -0.007582646116 | I75: 0.00176026558 | J75: 0.04371121595
A76: 0.02662198766 | B76: -0.1440941287 | C76: 0.007263185516 | D76: 0.06014086135 | E76: 0.06572765332 | F76: 0.02771627824 | G76: 0.06145529896 | H76: 0.03656404161 | I76: 0.03951412536 | J76: 0.09472414646
A77: 0.02826485625 | B77: -0.09073802742 | C77: 0.1309947768 | D77: 0.007786997946 | E77: 0.04142278715 | F77: 0.003558484927 | G77: 0.002341878078 | H77: 0.01759531836 | I77: -0.01803832829 | J77: 0.07561981638
A78: -0.001250500593 | B78: -0.012195057 | C78: 0.02599079239 | D78: -0.01858280697 | E78: 0.03523107126 | F78: -0.05953072773 | G78: 0.003328199088 | H78: 0.0588485192 | I78: -0.02698568149 | J78: 0.08049695096
A79: -0.01222416133 | B79: -0.1076074881 | C79: 0.1369187737 | D79: -0.0622800901 | E79: -0.01014002052 | F79: -0.04099556132 | G79: -0.07265608371 | H79: -0.01727266327 | I79: -0.003062455575 | J79: 0.005699069835
A80: -0.02469929647 | B80: 0.002803687093 | C80: 0.05567980821 | D80: 0.06466549891 | E80: -0.006003633503 | F80: -0.03439497739 | G80: 0.1048836792 | H80: 0.02339930122 | I80: 0.04753712991 | J80: -0.01901778855
A81: 0.01022336261 | B81: 0.09385137733 | C81: 0.01631234122 | D81: -0.001519831875 | E81: 0.04801158435 | F81: 0.05275105872 | G81: -0.001933387691 | H81: 0.02049656671 | I81: 0.0116774417 | J81: -0.02611828625
A82: -0.00525113461 | B82: 0.04582152559 | C82: -0.03648726023 | D82: 0.002044963833 | E82: 0.01892437312 | F82: -0.03661010126 | G82: -0.004317502491 | H82: 0.01242144361 | I82: 0.01495868894 | J82: -0.003258450171
A83: 0.04262878498 | B83: 0.01085217698 | C83: -0.09186631482 | D83: 0.01389302442 | E83: 0.1220221093 | F83: 0.04795940305 | G83: 0.1011750364 | H83: 0.0996645105 | I83: 0.08826154734 | J83: 0.0222253498
A84: -0.07274584704 | B84: -0.0107019591 | C84: -0.06382952831 | D84: -0.06454587894 | E84: -0.09965722181 | F84: -0.0822037148 | G84: -0.02502558685 | H84: -0.01706557875 | I84: -0.0830318789 | J84: 0.09058466891
A85: 0.04418070576 | B85: -0.02596914612 | C85: -0.09178124586 | D85: -0.007524273874 | E85: 0.01031354074 | F85: -0.007438639538 | G85: -0.02441459722 | H85: -0.02885528897 | I85: -0.004496029962 | J85: 0.004858424482
A86: 0.09396749305 | B86: 0.1052829308 | C86: 0.01170761162 | D86: 0.06059028701 | E86: -0.003247723002 | F86: 0.01622267118 | G86: 0.05354064583 | H86: 0.05507887421 | I86: 0.002658103934 | J86: -0.08241440719
A87: 0.05484647283 | B87: 0.1883101369 | C87: -0.003221204218 | D87: 0.02541385665 | E87: 0.03704444314 | F87: 0.08194616557 | G87: 0.0271378082 | H87: 0.04904625124 | I87: 0.03865024911 | J87: -0.06215020462

Sheet Summary
A1: Summary measures for stock returns
A3: Stock | B3: AXP | C3: AAPL | D3: F | E3: IBM | F3: ORCL | G3: MSFT | H3: GE | I3: COST | J3: XOM | K3: LUV
A4: Means | B4: =AVERAGE(AXP) -> 0.01184096197 | C4: =AVERAGE(AAPL) -> 0.01684805137 | D4: =AVERAGE(F) -> 0.001682180977 | E4: =AVERAGE(IBM) -> 0.0006958744545 | F4: =AVERAGE(ORCL) -> 0.00990562542 | G4: =AVERAGE(MSFT) -> 0.02004390862 | H4: =AVERAGE(GE) -> -0.001640409142 | I4: =AVERAGE(COST) -> 0.01636116078 | J4: =AVERAGE(XOM) -> 0.003426011004 | K4: =AVERAGE(LUV) -> 0.02403996921
A5: StdDev | B5: =STDEV(AXP) -> 0.05489631768 | C5: =STDEV(AAPL) -> 0.07562684814 | D5: =STDEV(F) -> 0.06244798255 | E5: =STDEV(IBM) -> 0.05814029944 | F5: =STDEV(ORCL) -> 0.0506514197 | G5: =STDEV(MSFT) -> 0.05861597094 | H5: =STDEV(GE) -> 0.07234067031 | I5: =STDEV(COST) -> 0.04758165933 | J5: =STDEV(XOM) -> 0.04621672934 | K5: =STDEV(LUV) -> 0.08493414278
A7: Correlations | B7: AXP | C7: AAPL | D7: F | E7: IBM | F7: ORCL | G7: MSFT | H7: GE | I7: COST | J7: XOM | K7: LUV
A8: AXP | B8: =CORREL(AXP,AXP) -> 1 | C8: =CORREL(AAPL,AXP) -> 0.2314369345 | D8: =CORREL(F,AXP) -> 0.4292211175 | E8: =CORREL(IBM,AXP) -> 0.4737264189 | F8: =CORREL(ORCL,AXP) -> 0.4248424827 | G8: =CORREL(MSFT,AXP) -> 0.3238393314 | H8: =CORREL(GE,AXP) -> 0.2141608019 | I8: =CORREL(COST,AXP) -> 0.2835063203 | J8: =CORREL(XOM,AXP) -> 0.4196826875 | K8: =CORREL(LUV,AXP) -> 0.3410396508
A9: AAPL | B9: =CORREL(AXP,AAPL) -> 0.2314369345 | C9: =CORREL(AAPL,AAPL) -> 1 | D9: =CORREL(F,AAPL) -> 0.1759214878 | E9: =CORREL(IBM,AAPL) -> 0.2403218233 | F9: =CORREL(ORCL,AAPL) -> 0.3536118964 | G9: =CORREL(MSFT,AAPL) -> 0.3643825071 | H9: =CORREL(GE,AAPL) -> 0.2320028973 | I9: =CORREL(COST,AAPL) -> 0.3913002614 | J9: =CORREL(XOM,AAPL) -> 0.1565172348 | K9: =CORREL(LUV,AAPL) -> 0.08102025385
A10: F | B10: =CORREL(AXP,F) -> 0.4292211175 | C10: =CORREL(AAPL,F) -> 0.1759214878 | D10: =CORREL(F,F) -> 1 | E10: =CORREL(IBM,F) -> 0.279477513 | F10: =CORREL(ORCL,F) -> 0.2535616623 | G10: =CORREL(MSFT,F) -> 0.156459719 | H10: =CORREL(GE,F) -> 0.3040171742 | I10: =CORREL(COST,F) -> 0.3007030433 | J10: =CORREL(XOM,F) -> 0.2861914593 | K10: =CORREL(LUV,F) -> 0.3520805436
A11: IBM | B11: =CORREL(AXP,IBM) -> 0.4737264189 | C11: =CORREL(AAPL,IBM) -> 0.2403218233 | D11: =CORREL(F,IBM) -> 0.279477513 | E11: =CORREL(IBM,IBM) -> 1 | F11: =CORREL(ORCL,IBM) -> 0.494678983 | G11: =CORREL(MSFT,IBM) -> 0.3458218412 | H11: =CORREL(GE,IBM) -> 0.3527440216 | I11: =CORREL(COST,IBM) -> 0.2901644128 | J11: =CORREL(XOM,IBM) -> 0.422724235 | K11: =CORREL(LUV,IBM) -> 0.3630676704
A12: ORCL | B12: =CORREL(AXP,ORCL) -> 0.4248424827 | C12: =CORREL(AAPL,ORCL) -> 0.3536118964 | D12: =CORREL(F,ORCL) -> 0.2535616623 | E12: =CORREL(IBM,ORCL) -> 0.494678983 | F12: =CORREL(ORCL,ORCL) -> 1 | G12: =CORREL(MSFT,ORCL) -> 0.4187747518 | H12: =CORREL(GE,ORCL) -> 0.3509198787 | I12: =CORREL(COST,ORCL) -> 0.2716237435 | J12: =CORREL(XOM,ORCL) -> 0.5001289867 | K12: =CORREL(LUV,ORCL) -> 0.2792502308
A13: MSFT | B13: =CORREL(AXP,MSFT) -> 0.3238393314 | C13: =CORREL(AAPL,MSFT) -> 0.3643825071 | D13: =CORREL(F,MSFT) -> 0.156459719 | E13: =CORREL(IBM,MSFT) -> 0.3458218412 | F13: =CORREL(ORCL,MSFT) -> 0.4187747518 | G13: =CORREL(MSFT,MSFT) -> 1 | H13: =CORREL(GE,MSFT) -> 0.1634999802 | I13: =CORREL(COST,MSFT) -> 0.284679692 | J13: =CORREL(XOM,MSFT) -> 0.294895476 | K13: =CORREL(LUV,MSFT) -> 0.08539946473
A14: GE | B14: =CORREL(AXP,GE) -> 0.2141608019 | C14: =CORREL(AAPL,GE) -> 0.2320028973 | D14: =CORREL(F,GE) -> 0.3040171742 | E14: =CORREL(IBM,GE) -> 0.3527440216 | F14: =CORREL(ORCL,GE) -> 0.3509198787 | G14: =CORREL(MSFT,GE) -> 0.1634999802 | H14: =CORREL(GE,GE) -> 1 | I14: =CORREL(COST,GE) -> 0.2372843772 | J14: =CORREL(XOM,GE) -> 0.4490342753 | K14: =CORREL(LUV,GE) -> 0.2547616113
A15: COST | B15: =CORREL(AXP,COST) -> 0.2835063203 | C15: =CORREL(AAPL,COST) -> 0.3913002614 | D15: =CORREL(F,COST) -> 0.3007030433 | E15: =CORREL(IBM,COST) -> 0.2901644128 | F15: =CORREL(ORCL,COST) -> 0.2716237435 | G15: =CORREL(MSFT,COST) -> 0.284679692 | H15: =CORREL(GE,COST) -> 0.2372843772 | I15: =CORREL(COST,COST) -> 1 | J15: =CORREL(XOM,COST) -> 0.3375417079 | K15: =CORREL(LUV,COST) -> 0.3854501497
A16: XOM | B16: =CORREL(AXP,XOM) -> 0.4196826875 | C16: =CORREL(AAPL,XOM) -> 0.1565172348 | D16: =CORREL(F,XOM) -> 0.2861914593 | E16: =CORREL(IBM,XOM) -> 0.422724235 | F16: =CORREL(ORCL,XOM) -> 0.5001289867 | G16: =CORREL(MSFT,XOM) -> 0.294895476 | H16: =CORREL(GE,XOM) -> 0.4490342753 | I16: =CORREL(COST,XOM) -> 0.3375417079 | J16: =CORREL(XOM,XOM) -> 1 | K16: =CORREL(LUV,XOM) -> 0.1993075446
A17: LUV | B17: =CORREL(AXP,LUV) -> 0.3410396508 | C17: =CORREL(AAPL,LUV) -> 0.08102025385 | D17: =CORREL(F,LUV) -> 0.3520805436 | E17: =CORREL(IBM,LUV) -> 0.3630676704 | F17: =CORREL(ORCL,LUV) -> 0.2792502308 | G17: =CORREL(MSFT,LUV) -> 0.08539946473 | H17: =CORREL(GE,LUV) -> 0.2547616113 | I17: =CORREL(COST,LUV) -> 0.3854501497 | J17: =CORREL(XOM,LUV) -> 0.1993075446 | K17: =CORREL(LUV,LUV) -> 1

Sheet Model
A1: Portfolio Selection Model
A3: Stock | B3: AXP | C3: AAPL | D3: F | E3: IBM | F3: ORCL | G3: MSFT | H3: GE | I3: COST | J3: XOM | K3: LUV
A4: Weights | B4: 0.1 | C4: 0.1 | D4: 0.1 | E4: 0.1 | F4: 0.1 | G4: 0.1 | H4: 0.1 | I4: 0.1 | J4: 0.1 | K4: 0.1
A5: Means | B5: =AVERAGE(AXP) -> 0.01184096197 | C5: =AVERAGE(AAPL) -> 0.01684805137 | D5: =AVERAGE(F) -> 0.001682180977 | E5: =AVERAGE(IBM) -> 0.0006958744545 | F5: =AVERAGE(ORCL) -> 0.00990562542 | G5: =AVERAGE(MSFT) -> 0.02004390862 | H5: =AVERAGE(GE) -> -0.001640409142 | I5: =AVERAGE(COST) -> 0.01636116078 | J5: =AVERAGE(XOM) -> 0.003426011004 | K5: =AVERAGE(LUV) -> 0.02403996921
A7: Minimum Return: | C7: =MIN(means) -> -0.001640409142 | E7: Sum of Weights: | G7: =SUM(weights) -> 1
A8: Maximum Return: | C8: =MAX(means) -> 0.02403996921
A10: Constraint on Mean Return: | D10: =SUMPRODUCT(weights, means) -> 0.01032033347 | E10: >= | F10: 0.02403996885
A12: Portfolio variance: | D12: =MMULT(weights,MMULT(covariances,TRANSPOSE(weights))) -> 0.001361572512
A14: Portfolio standard deviation: | D14: =SQRT(portfolioVariance) -> 0.03689949203
A16: Covariances | B16: AXP | C16: AAPL | D16: F | E16: IBM | F16: ORCL | G16: MSFT | H16: GE | I16: COST | J16: XOM | K16: LUV
A17: AXP | B17: =COVAR(AXP,AXP) -> 0.002978563768 | C17: =COVAR(AAPL,AXP) -> 0.0009496692099 | D17: =COVAR(F,AXP) -> 0.001454330734 | E17: =COVAR(IBM,AXP) -> 0.001494405846 | F17: =COVAR(ORCL,AXP) -> 0.001167570865 | G17: =COVAR(MSFT,AXP) -> 0.001029933646 | H17: =COVAR(GE,AXP) -> 0.0008405938366 | I17: =COVAR(COST,AXP) -> 0.0007319240484 | J17: =COVAR(XOM,AXP) -> 0.00105240754 | K17: =COVAR(LUV,AXP) -> 0.00157163203
A18: AAPL | B18: =COVAR(AXP,AAPL) -> 0.0009496692099 | C18: =COVAR(AAPL,AAPL) -> 0.005652915273 | D18: =COVAR(F,AAPL) -> 0.0008211713279 | E18: =COVAR(IBM,AAPL) -> 0.001044400208 | F18: =COVAR(ORCL,AAPL) -> 0.001338797724 | G18: =COVAR(MSFT,AAPL) -> 0.001596503806 | H18: =COVAR(GE,AAPL) -> 0.001254505046 | I18: =COVAR(COST,AAPL) -> 0.001391701825 | J18: =COVAR(XOM,AAPL) -> 0.0005407018432 | K18: =COVAR(LUV,AAPL) -> 0.000514366153
A19: F | B19: =COVAR(AXP,F) -> 0.001454330734 | C19: =COVAR(AAPL,F) -> 0.0008211713279 | D19: =COVAR(F,F) -> 0.003854404588 | E19: =COVAR(IBM,F) -> 0.001002912447 | F19: =COVAR(ORCL,F) -> 0.0007927095677 | G19: =COVAR(MSFT,F) -> 0.0005660533906 | H19: =COVAR(GE,F) -> 0.001357436534 | I19: =COVAR(COST,F) -> 0.0008831130321 | J19: =COVAR(XOM,F) -> 0.0008163845257 | K19: =COVAR(LUV,F) -> 0.001845708962
A20: IBM | B20: =COVAR(AXP,IBM) -> 0.001494405846 | C20: =COVAR(AAPL,IBM) -> 0.001044400208 | D20: =COVAR(F,IBM) -> 0.001002912447 | E20: =COVAR(IBM,IBM) -> 0.003340988669 | F20: =COVAR(ORCL,IBM) -> 0.001439835313 | G20: =COVAR(MSFT,IBM) -> 0.001164839584 | H20: =COVAR(GE,IBM) -> 0.001466357718 | I20: =COVAR(COST,IBM) -> 0.0007933804035 | J20: =COVAR(XOM,IBM) -> 0.001122675108 | K20: =COVAR(LUV,IBM) -> 0.001772015944
A21: ORCL | B21: =COVAR(AXP,ORCL) -> 0.001167570865 | C21: =COVAR(AAPL,ORCL) -> 0.001338797724 | D21: =COVAR(F,ORCL) -> 0.0007927095677 | E21: =COVAR(IBM,ORCL) -> 0.001439835313 | F21: =COVAR(ORCL,ORCL) -> 0.002535734152 | G21: =COVAR(MSFT,ORCL) -> 0.00122887738 | H21: =COVAR(GE,ORCL) -> 0.001270874297 | I21: =COVAR(COST,ORCL) -> 0.0006470225406 | J21: =COVAR(XOM,ORCL) -> 0.001157159784 | K21: =COVAR(LUV,ORCL) -> 0.001187375123
A22: MSFT | B22: =COVAR(AXP,MSFT) -> 0.001029933646 | C22: =COVAR(AAPL,MSFT) -> 0.001596503806 | D22: =COVAR(F,MSFT) -> 0.0005660533906 | E22: =COVAR(IBM,MSFT) -> 0.001164839584 | F22: =COVAR(ORCL,MSFT) -> 0.00122887738 | G22: =COVAR(MSFT,MSFT) -> 0.003395880514 | H22: =COVAR(GE,MSFT) -> 0.0006852304768 | I22: =COVAR(COST,MSFT) -> 0.0007847521391 | J22: =COVAR(XOM,MSFT) -> 0.000789593848 | K22: =COVAR(LUV,MSFT) -> 0.0004202172674
A23: GE | B23: =COVAR(AXP,GE) -> 0.0008405938366 | C23: =COVAR(AAPL,GE) -> 0.001254505046 | D23: =COVAR(F,GE) -> 0.001357436534 | E23: =COVAR(IBM,GE) -> 0.001466357718 | F23: =COVAR(ORCL,GE) -> 0.001270874297 | G23: =COVAR(MSFT,GE) -> 0.0006852304768 | H23: =COVAR(GE,GE) -> 0.005172321737 | I23: =COVAR(COST,GE) -> 0.0008072568364 | J23: =COVAR(XOM,GE) -> 0.001483821651 | K23: =COVAR(LUV,GE) -> 0.001547103249
A24: COST | B24: =COVAR(AXP,COST) -> 0.0007319240484 | C24: =COVAR(AAPL,COST) -> 0.001391701825 | D24: =COVAR(F,COST) -> 0.0008831130321 | E24: =COVAR(IBM,COST) -> 0.0007933804035 | F24: =COVAR(ORCL,COST) -> 0.0006470225406 | G24: =COVAR(MSFT,COST) -> 0.0007847521391 | H24: =COVAR(GE,COST) -> 0.0008072568364 | I24: =COVAR(COST,COST) -> 0.002237688556 | J24: =COVAR(XOM,COST) -> 0.0007336462623 | K24: =COVAR(LUV,COST) -> 0.001539609508
A25: XOM | B25: =COVAR(AXP,XOM) -> 0.00105240754 | C25: =COVAR(AAPL,XOM) -> 0.0005407018432 | D25: =COVAR(F,XOM) -> 0.0008163845257 | E25: =COVAR(IBM,XOM) -> 0.001122675108 | F25: =COVAR(ORCL,XOM) -> 0.001157159784 | G25: =COVAR(MSFT,XOM) -> 0.000789593848 | H25: =COVAR(GE,XOM) -> 0.001483821651 | I25: =COVAR(COST,XOM) -> 0.0007336462623 | J25: =COVAR(XOM,XOM) -> 0.002111149023 | K25: =COVAR(LUV,XOM) -> 0.0007732603281
A26: LUV | B26: =COVAR(AXP,LUV) -> 0.00157163203 | C26: =COVAR(AAPL,LUV) -> 0.000514366153 | D26: =COVAR(F,LUV) -> 0.001845708962 | E26: =COVAR(IBM,LUV) -> 0.001772015944 | F26: =COVAR(ORCL,LUV) -> 0.001187375123 | G26: =COVAR(MSFT,LUV) -> 0.0004202172674 | H26: =COVAR(GE,LUV) -> 0.001547103249 | I26: =COVAR(COST,LUV) -> 0.001539609508 | J26: =COVAR(XOM,LUV) -> 0.0007732603281 | K26: =COVAR(LUV,LUV) -> 0.007129927115

Sheet Frontier
A1: Efficient Frontier
E2: Weights for optimal portfolios
B3: Port Stdev | C3: Req'd Mean | E3: AXP | F3: AAPL | G3: F | H3: IBM | I3: ORCL | J3: MSFT | K3: GE | L3: COST | M3: XOM | N3: LUV
B4: 0.001361572512 | C4: -0.001640409115 | E4: 0.1 | F4: 0.1 | G4: 0.1 | H4: 0.1 | I4: 0.1 | J4: 0.1 | K4: 0.1 | L4: 0.1 | M4: 0.1 | N4: 0.1
B5: 0.001361572512 | C5: 0.0009276286582 | E5: 0.1 | F5: 0.1 | G5: 0.1 | H5: 0.1 | I5: 0.1 | J5: 0.1 | K5: 0.1 | L5: 0.1 | M5: 0.1 | N5: 0.1
B6: 0.001361572512 | C6: 0.003495666431 | E6: 0.1 | F6: 0.1 | G6: 0.1 | H6: 0.1 | I6: 0.1 | J6: 0.1 | K6: 0.1 | L6: 0.1 | M6: 0.1 | N6: 0.1
B7: 0.001361572512 | C7: 0.006063704379 | E7: 0.1 | F7: 0.1 | G7: 0.1 | H7: 0.1 | I7: 0.1 | J7: 0.1 | K7: 0.1 | L7: 0.1 | M7: 0.1 | N7: 0.1
B8: 0.001361572512 | C8: 0.008631741628 | E8: 0.1 | F8: 0.1 | G8: 0.1 | H8: 0.1 | I8: 0.1 | J8: 0.1 | K8: 0.1 | L8: 0.1 | M8: 0.1 | N8: 0.1
B9: 0.001361572512 | C9: 0.01119977981 | E9: 0.1 | F9: 0.1 | G9: 0.1 | H9: 0.1 | I9: 0.1 | J9: 0.1 | K9: 0.1 | L9: 0.1 | M9: 0.1 | N9: 0.1
B10: 0.001361572512 | C10: 0.01376781799 | E10: 0.1 | F10: 0.1 | G10: 0.1 | H10: 0.1 | I10: 0.1 | J10: 0.1 | K10: 0.1 | L10: 0.1 | M10: 0.1 | N10: 0.1
B11: 0.001361572512 | C11: 0.01633585617 | E11: 0.1 | F11: 0.1 | G11: 0.1 | H11: 0.1 | I11: 0.1 | J11: 0.1 | K11: 0.1 | L11: 0.1 | M11: 0.1 | N11: 0.1
B12: 0.001361572512 | C12: 0.01890389249 | E12: 0.1 | F12: 0.1 | G12: 0.1 | H12: 0.1 | I12: 0.1 | J12: 0.1 | K12: 0.1 | L12: 0.1 | M12: 0.1 | N12: 0.1
B13: 0.001361572512 | C13: 0.02147193067 | E13: 0.1 | F13: 0.1 | G13: 0.1 | H13: 0.1 | I13: 0.1 | J13: 0.1 | K13: 0.1 | L13: 0.1 | M13: 0.1 | N13: 0.1
B14: 0.001361572512 | C14: 0.02403996885 | E14: 0.1 | F14: 0.1 | G14: 0.1 | H14: 0.1 | I14: 0.1 | J14: 0.1 | K14: 0.1 | L14: 0.1 | M14: 0.1 | N14: 0.1

Sheet Yahoo
A1: 2019-04-17 | B1: 52.27 | C1: 53.73 | D1: 51.38 | E1: 52.77 | F1: 52.77 | G1: 46604896 | H1: 0 | I1: Pct Chg
A2: 2019-03-29 | B2: 56.28 | C2: 56.58 | D2: 48.5 | E2: 51.91 | F2: 51.91 | G2: 131602776 | H2: 0.16 | I2: =(F2-F3)/F3 -> -0.07092206198
A3: 2019-02-28 | B3: 56.99 | C3: 58.77 | D3: 53.31 | E3: 56.04 | F3: 55.8726 | G3: 105775523 | H3: 0 | I3: -0.01268413017
A4: 2019-01-31 | B4: 46.05 | C4: 57.815 | D4: 44.61 | E4: 56.76 | F4: 56.5904 | G4: 104027191 | H4: 0 | I4: 0.2211708397
A5: 2018-12-31 | B5: 54.9 | C5: 55.68 | D5: 44.28 | E5: 46.48 | F5: 46.3411 | G5: 91518485 | H5: 0.16 | I5: -0.1462944643
A6: 2018-11-30 | B6: 49.3 | C6: 54.655 | D6: 49.3 | E6: 54.61 | F6: 54.2823 | G6: 101261595 | H6: 0 | I6: 0.1122191397
A7: 2018-10-31 | B7: 62.61 | C7: 63.2 | D7: 47.1 | E7: 49.1 | F7: 48.8054 | G7: 143454663 | H7: 0 | I7: -0.2137710168
A8: 2018-09-28 | B8: 61.43 | C8: 64.02 | D8: 60.66 | E8: 62.45 | F8: 62.0753 | G8: 74909396 | H8: 0 | I8: 0.01876019576
A9: 2018-08-31 | B9: 58.12 | C9: 62.2 | D9: 55.61 | E9: 61.3 | F9: 60.9322 | G9: 83211004 | H9: 0.16 | I9: 0.05675357875
A10: 2018-07-31 | B10: 50.63 | C10: 59.33 | D10: 50.5 | E10: 58.16 | F10: 57.6598 | G10: 109639140 | H10: 0 | I10: 0.1430820104
A11: 2018-06-29 | B11: 51.2 | C11: 53.54 | D11: 49.93 | E11: 50.88 | F11: 50.4424 | G11: 135107394 | H11: 0.16 | I11: -0.0007844380175
A12: 2018-05-31 | B12: 52.8 | C12: 53.61 | D12: 50.2 | E12: 51.08 | F12: 50.482 | G12: 139140100 | H12: 0 | I12: -0.03312488628
A13: 2018-04-30 | B13: 57.19 | C13: 57.19 | D13: 51 | E13: 52.83 | F13: 52.2115 | G13: 113043313 | H13: 0 | I13: -0.0776885111
A14: 2018-03-29 | B14: 57.78 | C14: 61.375 | D14: 55.87 | E14: 57.28 | F14: 56.6094 | G14: 105809466 | H14: 0.125 | I14: -0.007557787888
A15: 2018-02-28 | B15: 60.51 | C15: 61.12 | D15: 54.011 | E15: 57.84 | F15: 57.0405 | G15: 90247458 | H15: 0 | I15: -0.04868286093
A16: 2018-01-31 | B16: 65.91 | C16: 66.52 | D16: 59.25 | E16: 60.8 | F16: 59.9595 | G16: 115795175 | H16: 0 | I16: -0.07104777575
A17: 2017-12-29 | B17: 60.51 | C17: 66.985 | D17: 59.51 | E17: 65.45 | F17: 64.5453 | G17: 85218377 | H17: 0.125 | I17: 0.08099421865
A18: 2017-11-30 | B18: 54.03 | C18: 61.51 | D18: 52.78 | E18: 60.67 | F18: 59.7092 | G18: 91033188 | H18: 0 | I18: 0.1264377791
A19: 2017-10-31 | B19: 56.02 | C19: 59.89 | D19: 53.54 | E19: 53.86 | F19: 53.0071 | G19: 118508974 | H19: 0 | I19: -0.03787016617
A20: 2017-09-29 | B20: 52.35 | C20: 56.65 | D20: 49.76 | E20: 55.98 | F20: 55.0935 | G20: 116275938 | H20: 0 | I20: 0.0736480864
A21: 2017-08-31 | B21: 55.88 | C21: 56.87 | D21: 50.49 | E21: 52.14 | F21: 51.3143 | G21: 128363672 | H21: 0.125 | I21: -0.05851194604
A22: 2017-07-31 | B22: 62.52 | C22: 64.39 | D22: 53.77 | E22: 55.51 | F22: 54.5034 | G22: 105900682 | H22: 0 | I22: -0.1066949447
A23: 2017-06-30 | B23: 60.18 | C23: 62.75 | D23: 57.63 | E23: 62.14 | F23: 61.0132 | G23: 105489900 | H23: 0.125 | I23: 0.03623489929
A24: 2017-05-31 | B24: 56.52 | C24: 61.19 | D24: 56.17 | E24: 60.09 | F24: 58.8797 | G24: 89232137 | H24: 0 | I24: 0.0688356929
A25: 2017-04-28 | B25: 53.72 | C25: 57.84 | D25: 52.88 | E25: 56.22 | F25: 55.0877 | G25: 91115769 | H25: 0 | I25: 0.04575983537
A26: 2017-03-31 | B26: 58.47 | C26: 59.68 | D26: 51.11 | E26: 53.76 | F26: 52.6772 | G26: 137622080 | H26: 0.1 | I26: -0.0682588001
A27: 2017-02-28 | B27: 52.55 | C27: 58.57 | D27: 52.18 | E27: 57.8 | F27: 56.5363 | G27: 99933606 | H27: 0 | I27: 0.1049497326
A28: 2017-01-31 | B28: 50.4 | C28: 54.18 | D28: 48.711 | E28: 52.31 | F28: 51.1664 | G28: 123704596 | H28: 0 | I28: 0.04955856772
A29: 2016-12-30 | B29: 46.36 | C29: 51.31 | D29: 46.185 | E29: 49.84 | F29: 48.7504 | G29: 104655529 | H29: 0.1 | I29: 0.07154098418
A30: 2016-11-30 | B30: 39.98 | C30: 47.99 | D30: 39.33 | E30: 46.61 | F30: 45.4956 | G30: 147979836 | H30: 0 | I30: 0.1637965436
A31: 2016-10-31 | B31: 38.85 | C31: 42.93 | D31: 36.91 | E31: 40.05 | F31: 39.0924 | G31: 211850483 | H31: 0 | I31: 0.02982597563
A32: 2016-09-30 | B32: 36.88 | C32: 39.18 | D32: 36.31 | E32: 38.89 | F32: 37.9602 | G32: 134019754 | H32: 0 | I32: 0.05450272514
A33: 2016-08-31 | B33: 37.16 | C33: 38.03 | D33: 35.42 | E33: 36.88 | F33: 35.9982 | G33: 140716121 | H33: 0.1 | I33: -0.0007855328716
A34: 2016-07-29 | B34: 39.26 | C34: 43.571 | D34: 37.01 | E34: 37.01 | F34: 36.0265 | G34: 173101981 | H34: 0 | I34: =(F34-F35)/F35 -> -0.05610721023
A35: 2016-06-30 | B35: 42.5 | C35: 44.33 | D35: 36.48 | E35: 39.21 | F35: 38.168 | G35: 168438888 | H35: 0.1 | I35: -0.07476674028
A36: 2016-05-31 | B36: 44.63 | C36: 45 | D36: 40.74 | E36: 42.48 | F36: 41.2523 | G36: 113039273 | H36: 0 | I36: -0.0477484257
A37: 2016-04-29 | B37: 44.4 | C37: 48 | D37: 43.0901 | E37: 44.61 | F37: 43.3208 | G37: 136927285 | H37: 0 | I37: -0.004240862608
A38: 2016-03-31 | B38: 42.22 | C38: 45.39 | D38: 39.99 | E38: 44.8 | F38: 43.5053 | G38: 135667217 | H38: 0.075 | I38: 0.0698226278
A39: 2016-02-29 | B39: 37.62 | C39: 42.86 | D39: 33.96 | E39: 41.95 | F39: 40.6659 | G39: 146456568 | H39: 0 | I39: 0.1150996479
A40: 2016-01-29 | B40: 41.7 | C40: 43.5 | D40: 35.51 | E40: 37.62 | F40: 36.4684 | G40: 154042697 | H40: 0 | I40: -0.1263358879
A41: 2015-12-31 | B41: 46 | C41: 51.34 | D41: 42.66 | E41: 43.06 | F41: 41.7419 | G41: 138904336 | H41: 0.075 | I41: -0.05990099456
A42: 2015-11-30 | B42: 46.47 | C42: 47.76 | D42: 44.6802 | E42: 45.88 | F42: 44.4016 | G42: 99993064 | H42: 0 | I42: -0.008857459195
A43: 2015-10-30 | B43: 37.82 | C43: 46.95 | D43: 37 | E43: 46.29 | F43: 44.7984 | G43: 163801408 | H43: 0 | I43: 0.2168749643
A44: 2015-09-30 | B44: 36.17 | C44: 40 | D44: 36 | E44: 38.04 | F44: 36.8143 | G44: 140450003 | H44: 0 | I44: 0.03651449712
A45: 2015-08-31 | B45: 36.66 | C45: 40.87 | D45: 33.32 | E45: 36.7 | F45: 35.5174 | G45: 178487423 | H45: 0.075 | I45: 0.01570279367
A46: 2015-07-31 | B46: 33.86 | C46: 38.695 | D46: 31.36 | E46: 36.2 | F46: 34.9683 | G46: 195240903 | H46: 0 | I46: 0.09398669132
A47: 2015-06-30 | B47: 37.11 | C47: 38.3 | D47: 33.02 | E47: 33.09 | F47: 31.9641 | G47: 238160807 | H47: 0.075 | I47: -0.1051133023
A48: 2015-05-29 | B48: 40.83 | C48: 43.45 | D48: 35.54 | E48: 37.05 | F48: 35.7186 | G48: 185920091 | H48: 0 | I48: -0.08653922383
A49: 2015-04-30 | B49: 44.07 | C49: 44.19 | D49: 40.1 | E49: 40.56 | F49: 39.1025 | G49: 140860110 | H49: 0 | I49: -0.08442426612
A50: 2015-03-31 | B50: 43.63 | C50: 46.5 | D50: 42.21 | E50: 44.3 | F50: 42.7081 | G50: 133228860 | H50: 0.06 | I50: 0.02591444007
A51: 2015-02-27 | B51: 44.94 | C51: 45.4899 | D51: 42.19 | E51: 43.24 | F51: 41.6293 | G51: 150687774 | H51: 0 | I51: -0.04294079375
A52: 2015-01-30 | B52: 42.69 | C52: 47.1738 | D52: 38.26 | E52: 45.18 | F52: 43.4971 | G52: 187090319 | H52: 0 | I52: 0.06758116612
A53: 2014-12-31 | B53: 42.24 | C53: 43.1872 | D53: 38.73 | E53: 42.32 | F53: 40.7436 | G53: 194325354 | H53: 0.06 | I53: 0.0134467577
A54: 2014-11-28 | B54: 34.55 | C54: 42.42 | D54: 34.47 | E54: 41.82 | F54: 40.203 | G54: 150297301 | H54: 0 | I54: 0.2128772612
A55: 2014-10-31 | B55: 32.97 | C55: 35.35 | D55: 28.4 | E55: 34.48 | F55: 33.1468 | G55: 278912481 | H55: 0 | I55: 0.02102309306
A56: 2014-09-30 | B56: 32.08 | C56: 35.49 | D56: 32.03 | E56: 33.77 | F56: 32.4643 | G56: 150334104 | H56: 0 | I56: 0.05498451529
A57: 2014-08-29 | B57: 28.21 | C57: 32.43 | D57: 27.4207 | E57: 32.01 | F57: 30.7723 | G57: 94688600 | H57: 0.06 | I57: 0.1341031046
A58: 2014-07-31 | B58: 27.18 | C58: 29.7 | D58: 25.86 | E58: 28.28 | F58: 27.1336 | G58: 133730481 | H58: 0 | I58: 0.05286521388
A59: 2014-06-30 | B59: 26.48 | C59: 27.7 | D59: 25.47 | E59: 26.86 | F59: 25.7712 | G59: 140150721 | H59: 0.06 | I59: 0.01778372807
A60: 2014-05-30 | B60: 24.17 | C60: 26.64 | D60: 23.85 | E60: 26.45 | F60: 25.3209 | G60: 105614278 | H60: 0 | I60: 0.09433318063
A61: 2014-04-30 | B61: 23.73 | C61: 24.45 | D61: 22.35 | E61: 24.17 | F61: 23.1382 | G61: 141616905 | H61: 0 | I61: 0.02371903496
A62: 2014-03-31 | B62: 22.15 | C62: 24.17 | D62: 21.82 | E62: 23.61 | F62: 22.6021 | G62: 148120899 | H62: 0.04 | I62: 0.0539812073
A63: 2014-02-28 | B63: 20.98 | C63: 22.625 | D63: 20.23 | E63: 22.44 | F63: 21.4445 | G63: 154376058 | H63: 0 | I63: 0.0711217446
A64: 2014-01-31 | B64: 18.85 | C64: 22.1 | D64: 18.78 | E64: 20.95 | F64: 20.0206 | G64: 195723468 | H64: 0 | I64: 0.1119960898
A65: 2013-12-31 | B65: 18.62 | C65: 19 | D65: 17.73 | E65: 18.84 | F65: 18.0042 | G65: 109824074 | H65: 0.04 | I65: 0.01563143436
A66: 2013-11-29 | B66: 17.26 | C66: 18.975 | D66: 17.2 | E66: 18.59 | F66: 17.7271 | G66: 150548783 | H66: 0 | I66: =(F66-F67)/F67 -> 0.07955811872
A67: 2013-10-31 | B67: 14.58 | C67: 17.34 | D67: 14.48 | E67: 17.22 | F67: 16.4207 | G67: 151818116 | H67: 0 | I67: 0.182689676
A68: 2013-09-30 | B68: 12.97 | C68: 14.82 | D68: 12.73 | E68: 14.56 | F68: 13.8842 | G68: 124582791 | H68: 0 | I68: 0.1366144375
A69: 2013-08-30 | B69: 13.91 | C69: 14.24 | D69: 12.645 | E69: 12.81 | F69: 12.2154 | G69: 119034751 | H69: 0.04 | I69: -0.07107930738
A70: 2013-07-31 | B70: 12.96 | C70: 14.02 | D70: 12.58 | E70: 13.83 | F70: 13.1501 | G70: 119505172 | H70: 0 | I70: 0.07292576063
A71: 2013-06-28 | B71: 14.18 | C71: 14.28 | D71: 12.79 | E71: 12.89 | F71: 12.2563 | G71: 150912846 | H71: 0.04 | I71: -0.08773353182
A72: 2013-05-31 | B72: 13.71 | C72: 14.56 | D72: 13.4 | E72: 14.17 | F72: 13.435 | G72: 174357913 | H72: 0 | I72: 0.03430489476
A73: 2013-04-30 | B73: 13.47 | C73: 13.77 | D73: 12.445 | E73: 13.7 | F73: 12.9894 | G73: 158470347 | H73: 0 | I73: 0.01632135704
A74: 2013-03-28 | B74: 11.66 | C74: 13.575 | D74: 11.66 | E74: 13.48 | F74: 12.7808 | G74: 140663274 | H74: 0.01 | I74: 0.1530959319
A75: 2013-02-28 | B75: 11.29 | C75: 11.895 | D75: 11.15 | E75: 11.7 | F75: 11.0839 | G75: 127182262 | H75: 0 | I75: 0.04371121595
A76: 2013-01-31 | B76: 10.45 | C76: 11.615 | D76: 10.36 | E76: 11.21 | F76: 10.6197 | G76: 188021543 | H76: 0 | I76: 0.09472414646
A77: 2012-12-31 | B77: 9.58 | C77: 10.61 | D77: 9.42 | E77: 10.24 | F77: 9.7008 | G77: 134540130 | H77: 0.01 | I77: 0.07561981638
A78: 2012-11-30 | B78: 8.82 | C78: 9.575 | D78: 8.7 | E78: 9.53 | F78: 9.0188 | G78: 133445332 | H78: 0 | I78: 0.08049695096
A79: 2012-10-31 | B79: 8.78 | C79: 9.17 | D79: 8.68 | E79: 8.82 | F79: 8.3469 | G79: 137071768 | H79: 0 | I79: 0.005699069835
A80: 2012-09-28 | B80: 8.93 | C80: 9.32 | D80: 8.75 | E80: 8.77 | F80: 8.2996 | G80: 120283375 | H80: 0 | I80: -0.01901778855
A81: 2012-08-31 | B81: 9.19 | C81: 9.525 | D81: 8.81 | E81: 8.94 | F81: 8.4605 | G81: 175469504 | H81: 0.01 | I81: -0.02611828625
A82: 2012-07-31 | B82: 9.3 | C82: 9.82 | D82: 8.45 | E82: 9.19 | F82: 8.6874 | G82: 202039497 | H82: 0 | I82: -0.003258450171
A83: 2012-06-29 | B83: 8.9 | C83: 9.42 | D83: 8.58 | E83: 9.22 | F83: 8.7158 | G83: 225280330 | H83: 0.01 | I83: 0.0222253498
A84: 2012-05-31 | B84: 8.25 | C84: 9.135 | D84: 8 | E84: 9.03 | F84: 8.5263 | G84: 210621226 | H84: 0 | I84: 0.09058466891
A85: 2012-04-30 | B85: 8.22 | C85: 8.5 | D85: 7.76 | E85: 8.28 | F85: 7.8181 | G85: 181294610 | H85: 0 | I85: 0.004858424482
A86: 2012-03-30 | B86: 9.02 | C86: 9.11 | D86: 8.03 | E86: 8.24 | F86: 7.7803 | G86: 177970984 | H86: 0 | I86: -0.08241440719
A87: 2012-02-29 | B87: 9.7 | C87: 10.05 | D87: 8.67 | E87: 8.98 | F87: 8.4791 | G87: 101829047 | H87: 0.0045 | I87: -0.06215020462
A88: 2012-01-31 | B88: 8.72 | C88: 9.78 | D88: 8.22 | E88: 9.58 | F88: 9.041 | G88: 121957901 | H88: 0
